[Event "Late-Titled-Tuesday-Blitz-February-06-2024"]
[Site "Chess.com"]
[Date "2024.02.06"]
[Round "7"]
[White "Tsschessulover"]
[Black "Binary010"]
[Result "0-1"]
[WhiteElo "2592"]
[BlackElo "2826"]
[TimeControl "180+1"]
[EndTime "15:19:43 PST"]
[Termination "Binary010 won on time"]

1. d4 {[%clk 0:03:00.9]} 1... Nf6 {[%clk 0:02:59.6]} 2. Nf3 {[%clk 0:03:01.4]}
2... e6 {[%clk 0:02:59.7]} 3. Bf4 {[%clk 0:03:01.7]} 3... d5 {[%clk 0:02:57.9]}
4. e3 {[%clk 0:03:00.7]} 4... Bd6 {[%clk 0:02:58.5]} 5. Nbd2 {[%clk 0:02:59.2]}
5... O-O {[%clk 0:02:58.3]} 6. c3 {[%clk 0:02:55.1]} 6... Bxf4 {[%clk
0:02:52.8]} 7. exf4 {[%clk 0:02:56]} 7... c5 {[%clk 0:02:53.1]} 8. dxc5 {[%clk
0:02:46.5]} 8... Qc7 {[%clk 0:02:53.1]} 9. g3 {[%clk 0:02:46.5]} 9... a5 {[%clk
0:02:49.8]} 10. Bd3 {[%clk 0:02:37.6]} 10... Nbd7 {[%clk 0:02:49]} 11. O-O
{[%clk 0:02:36.6]} 11... Nxc5 {[%clk 0:02:49.2]} 12. Bc2 {[%clk 0:02:36.7]}
12... b5 {[%clk 0:02:49.5]} 13. Nb3 {[%clk 0:02:34.6]} 13... Nce4 {[%clk
0:02:41.4]} 14. Nbd2 {[%clk 0:02:16.6]} 14... b4 {[%clk 0:02:32.1]} 15. cxb4
{[%clk 0:02:12.5]} 15... axb4 {[%clk 0:02:32.4]} 16. Nxe4 {[%clk 0:02:04.4]}
16... dxe4 {[%clk 0:02:32.6]} 17. Ne5 {[%clk 0:01:55.8]} 17... Ba6 {[%clk
0:02:14.9]} 18. Re1 {[%clk 0:01:55.4]} 18... Rfd8 {[%clk 0:02:15.1]} 19. Qc1
{[%clk 0:01:48.2]} 19... Rac8 {[%clk 0:02:09.3]} 20. Bb3 {[%clk 0:01:47.1]}
20... Qb6 {[%clk 0:02:02.3]} 21. Qe3 {[%clk 0:01:47.1]} 21... Qxe3 {[%clk
0:01:58.9]} 22. Rxe3 {[%clk 0:01:47.3]} 22... Rd2 {[%clk 0:01:41.6]} 23. g4
{[%clk 0:01:46.7]} 23... Bd3 {[%clk 0:01:10.2]} 24. f5 {[%clk 0:01:21.5]} 24...
Nd5 {[%clk 0:01:10.1]} 25. Rg3 {[%clk 0:01:21.3]} 25... Rxb2 {[%clk 0:00:52.7]}
26. Nxd3 {[%clk 0:01:18.3]} 26... exd3 {[%clk 0:00:52.8]} 27. fxe6 {[%clk
0:01:13.9]} 27... fxe6 {[%clk 0:00:48.9]} 28. Rxd3 {[%clk 0:01:13.8]} 28... Nf4
{[%clk 0:00:43.9]} 29. Re3 {[%clk 0:01:11.2]} 29... Kf7 {[%clk 0:00:38.1]} 30.
Rae1 {[%clk 0:01:06.3]} 30... Rc6 {[%clk 0:00:37.6]} 31. g5 {[%clk 0:01:00.1]}
31... Kg6 {[%clk 0:00:30.6]} 32. Rf3 {[%clk 0:00:41.5]} 32... Kxg5 {[%clk
0:00:17.4]} 33. h4+ {[%clk 0:00:42.1]} 33... Kg4 {[%clk 0:00:05.6]} 34. Bd1
{[%clk 0:00:42.5]} 34... Kf5 {[%clk 0:00:04.4]} 35. Rg3 {[%clk 0:00:35.6]} 35...
g6 {[%clk 0:00:04.8]} 36. Bg4+ {[%clk 0:00:27]} 36... Kf6 {[%clk 0:00:05.1]} 37.
Rf3 {[%clk 0:00:27.6]} 37... e5 {[%clk 0:00:05.4]} 38. Re4 {[%clk 0:00:22.8]}
38... Ra6 {[%clk 0:00:02.4]} 39. Rfe3 {[%clk 0:00:21.9]} 39... Ra5 {[%clk
0:00:02.1]} 40. Rb3 {[%clk 0:00:13.8]} 40... Rxb3 {[%clk 0:00:01.7]} 41. axb3
{[%clk 0:00:14.7]} 41... h5 {[%clk 0:00:02.1]} 42. Bd7 {[%clk 0:00:13.3]} 42...
Ra1+ {[%clk 0:00:01.8]} 43. Kh2 {[%clk 0:00:13.4]} 43... Nd5 {[%clk 0:00:02.4]}
44. Bc6 {[%clk 0:00:13.1]} 44... Rd1 {[%clk 0:00:01.9]} 45. Bxd5 {[%clk
0:00:12.9]} 45... Rxd5 {[%clk 0:00:02.8]} 46. Rxb4 {[%clk 0:00:13.4]} 46... Rd2
{[%clk 0:00:03.5]} 47. Kg3 {[%clk 0:00:13.9]} 47... Rb2 {[%clk 0:00:04.1]} 48.
f3 {[%clk 0:00:13.4]} 48... Kf5 {[%clk 0:00:04.7]} 49. Rb5 {[%clk 0:00:13.9]}
49... Kf6 {[%clk 0:00:03]} 50. Rb8 {[%clk 0:00:13.6]} 50... Kf5 {[%clk
0:00:03.1]} 51. Rb6 {[%clk 0:00:12.8]} 51... Rb1 {[%clk 0:00:02.6]} 52. Rb8
{[%clk 0:00:10.9]} 52... Rg1+ {[%clk 0:00:01.9]} 53. Kh2 {[%clk 0:00:10.4]}
53... Rb1 {[%clk 0:00:02.4]} 54. Kg2 {[%clk 0:00:10.7]} 54... Rb2+ {[%clk
0:00:02.7]} 55. Kg3 {[%clk 0:00:11.4]} 55... Rb1 {[%clk 0:00:03.4]} 56. b4
{[%clk 0:00:11.8]} 56... Rb3 {[%clk 0:00:01.5]} 57. b5 {[%clk 0:00:10.8]} 57...
e4 {[%clk 0:00:01.7]} 58. Rf8+ {[%clk 0:00:10.7]} 58... Ke5 {[%clk 0:00:02.1]}
59. Re8+ {[%clk 0:00:11]} 59... Kf5 {[%clk 0:00:02.8]} 60. Rxe4 {[%clk
0:00:10.9]} 60... Rxb5 {[%clk 0:00:03.5]} 61. Rd4 {[%clk 0:00:10.8]} 61... Re5
{[%clk 0:00:03.5]} 62. Rf4+ {[%clk 0:00:10.2]} 62... Ke6 {[%clk 0:00:03.8]} 63.
Rf8 {[%clk 0:00:09.9]} 63... Rf5 {[%clk 0:00:04]} 64. Rg8 {[%clk 0:00:09.7]}
64... Kf7 {[%clk 0:00:04.4]} 65. Ra8 {[%clk 0:00:09.5]} 65... Kg7 {[%clk
0:00:05.2]} 66. Ra6 {[%clk 0:00:09.9]} 66... Rf7 {[%clk 0:00:05.9]} 67. f4
{[%clk 0:00:09.3]} 67... Rf6 {[%clk 0:00:06.4]} 68. Ra5 {[%clk 0:00:09.2]} 68...
Rf7 {[%clk 0:00:06.8]} 69. Kf3 {[%clk 0:00:09.7]} 69... Rb7 {[%clk 0:00:06.7]}
70. Ke4 {[%clk 0:00:09.8]} 70... Re7+ {[%clk 0:00:06.5]} 71. Kf3 {[%clk
0:00:10.2]} 71... Rf7 {[%clk 0:00:06.8]} 72. Kg3 {[%clk 0:00:10.5]} 72... Rb7
{[%clk 0:00:07.1]} 73. Ra3 {[%clk 0:00:09.4]} 73... Rb6 {[%clk 0:00:07.2]} 74.
Ra7+ {[%clk 0:00:09]} 74... Kf6 {[%clk 0:00:07.6]} 75. Ra3 {[%clk 0:00:09.9]}
75... Rc6 {[%clk 0:00:07.4]} 76. Re3 {[%clk 0:00:09.2]} 76... Re6 {[%clk
0:00:07.4]} 77. Rxe6+ {[%clk 0:00:08.1]} 77... Kxe6 {[%clk 0:00:08.3]} 78. Kf2
{[%clk 0:00:06.9]} 78... Kd5 {[%clk 0:00:04.3]} 79. Ke3 {[%clk 0:00:06.1]} 79...
Kd6 {[%clk 0:00:03.6]} 80. Kd4 {[%clk 0:00:06.6]} 80... Ke6 {[%clk 0:00:03.7]}
81. Ke4 {[%clk 0:00:07.4]} 81... Kf6 {[%clk 0:00:04.2]} 82. Ke3 {[%clk
0:00:07.8]} 82... Kf5 {[%clk 0:00:03.8]} 83. Kf3 {[%clk 0:00:08.3]} 83... Kf6
{[%clk 0:00:04.4]} 84. Ke4 {[%clk 0:00:09]} 84... Ke6 {[%clk 0:00:04.9]} 85. Kd4
{[%clk 0:00:08.6]} 85... Kf5 {[%clk 0:00:04.9]} 86. Ke3 {[%clk 0:00:07.7]} 86...
Kg4 {[%clk 0:00:05.2]} 87. Ke4 {[%clk 0:00:02.8]} 87... Kxh4 {[%clk 0:00:05.4]}
88. f5 {[%clk 0:00:03.2]} 88... gxf5+ {[%clk 0:00:05.8]} 89. Kxf5 {[%clk
0:00:03.4]} 89... Kg3 {[%clk 0:00:06.2]} 0-1

[Event "Late-Titled-Tuesday-Blitz-February-06-2024"]
[Site "Chess.com"]
[Date "2024.02.06"]
[Round "7"]
[White "Chempiblinka"]
[Black "RichardLeyvaP"]
[Result "0-1"]
[WhiteElo "2346"]
[BlackElo "2519"]
[TimeControl "180+1"]
[EndTime "15:19:56 PST"]
[Termination "RichardLeyvaP won on time"]

1. Nf3 {[%clk 0:03:00.9]} 1... Nf6 {[%clk 0:02:58.7]} 2. g3 {[%clk 0:02:57.5]}
2... g6 {[%clk 0:02:59.3]} 3. Bg2 {[%clk 0:02:57.7]} 3... Bg7 {[%clk 0:02:59.8]}
4. O-O {[%clk 0:02:58.6]} 4... O-O {[%clk 0:03:00.2]} 5. c4 {[%clk 0:02:55.5]}
5... c6 {[%clk 0:03:00.1]} 6. d4 {[%clk 0:02:52.9]} 6... d6 {[%clk 0:03:00.2]}
7. Nc3 {[%clk 0:02:42.2]} 7... Qa5 {[%clk 0:02:59.1]} 8. h3 {[%clk 0:02:42.6]}
8... Be6 {[%clk 0:02:58.5]} 9. Nd2 {[%clk 0:02:18.6]} 9... Qa6 {[%clk
0:02:58.2]} 10. b3 {[%clk 0:02:16.8]} 10... d5 {[%clk 0:02:56.3]} 11. c5 {[%clk
0:02:04.8]} 11... Nfd7 {[%clk 0:02:55.8]} 12. e3 {[%clk 0:02:02]} 12... Nxc5
{[%clk 0:02:55.5]} 13. Re1 {[%clk 0:01:50.6]} 13... Qa5 {[%clk 0:02:53.4]} 14.
Ndb1 {[%clk 0:01:12.4]} 14... Ncd7 {[%clk 0:02:50.8]} 15. Bd2 {[%clk 0:01:11.3]}
15... Qd8 {[%clk 0:02:50.5]} 16. b4 {[%clk 0:01:06]} 16... Nf6 {[%clk
0:02:50.3]} 17. b5 {[%clk 0:01:04.6]} 17... cxb5 {[%clk 0:02:49.4]} 18. Nxb5
{[%clk 0:01:03.2]} 18... Nc6 {[%clk 0:02:49.6]} 19. N1c3 {[%clk 0:01:00.5]}
19... a6 {[%clk 0:02:49.9]} 20. Na3 {[%clk 0:00:59.7]} 20... b5 {[%clk
0:02:50.2]} 21. Nc2 {[%clk 0:00:59]} 21... Na5 {[%clk 0:02:50.4]} 22. Rb1 {[%clk
0:00:58.3]} 22... Nc4 {[%clk 0:02:50.1]} 23. Bc1 {[%clk 0:00:58.9]} 23... Bf5
{[%clk 0:02:49.1]} 24. Rb3 {[%clk 0:00:53.4]} 24... e6 {[%clk 0:02:44.5]} 25.
Nb4 {[%clk 0:00:52.8]} 25... h5 {[%clk 0:02:43.4]} 26. Nd3 {[%clk 0:00:42.7]}
26... Bxd3 {[%clk 0:02:41.7]} 27. Qxd3 {[%clk 0:00:42.3]} 27... Qd6 {[%clk
0:02:40.2]} 28. Ne2 {[%clk 0:00:38.4]} 28... Rac8 {[%clk 0:02:39]} 29. h4 {[%clk
0:00:38.9]} 29... Rc7 {[%clk 0:02:36.2]} 30. Nf4 {[%clk 0:00:38.9]} 30... Rfc8
{[%clk 0:02:36.1]} 31. Qe2 {[%clk 0:00:38.6]} 31... Na5 {[%clk 0:02:27.1]} 32.
Ba3 {[%clk 0:00:32.2]} 32... Qd7 {[%clk 0:02:27.4]} 33. Rb2 {[%clk 0:00:31.8]}
33... Bf8 {[%clk 0:02:27.4]} 34. Bxf8 {[%clk 0:00:31.5]} 34... Kxf8 {[%clk
0:02:23.6]} 35. Nd3 {[%clk 0:00:32.1]} 35... Qd6 {[%clk 0:02:19.6]} 36. Nc5
{[%clk 0:00:31.8]} 36... Nd7 {[%clk 0:02:18.8]} 37. Nd3 {[%clk 0:00:20.2]} 37...
Nc4 {[%clk 0:02:18.1]} 38. Rc2 {[%clk 0:00:20.2]} 38... b4 {[%clk 0:02:17.8]}
39. Bf1 {[%clk 0:00:19.7]} 39... a5 {[%clk 0:02:18]} 40. Rec1 {[%clk 0:00:20.3]}
40... Kg7 {[%clk 0:02:16.2]} 41. Nf4 {[%clk 0:00:20.4]} 41... Ndb6 {[%clk
0:02:12.9]} 42. g4 {[%clk 0:00:20.7]} 42... hxg4 {[%clk 0:01:49.4]} 43. Qxg4
{[%clk 0:00:21.6]} 43... e5 {[%clk 0:01:47.1]} 44. Nh5+ {[%clk 0:00:19.7]} 44...
Kf8 {[%clk 0:01:46.8]} 45. Ng3 {[%clk 0:00:19.3]} 45... exd4 {[%clk 0:01:29.4]}
46. Qxd4 {[%clk 0:00:17.8]} 46... Qe5 {[%clk 0:01:29.5]} 47. Qd3 {[%clk
0:00:16]} 47... Qf6 {[%clk 0:01:17.6]} 48. Bh3 {[%clk 0:00:16.5]} 48... Ne5
{[%clk 0:01:15.8]} 49. Qe2 {[%clk 0:00:15.6]} 49... Rxc2 {[%clk 0:01:14.2]} 50.
Rxc2 {[%clk 0:00:16.5]} 50... Rc3 {[%clk 0:01:13.7]} 51. Rxc3 {[%clk 0:00:16.2]}
51... bxc3 {[%clk 0:01:14.1]} 52. Qc2 {[%clk 0:00:14.6]} 52... Nbc4 {[%clk
0:01:13.1]} 53. Kg2 {[%clk 0:00:12.5]} 53... Qf3+ {[%clk 0:01:12.6]} 54. Kg1
{[%clk 0:00:12.8]} 54... Qf6 {[%clk 0:01:09]} 55. Kg2 {[%clk 0:00:13.1]} 55...
Qxh4 {[%clk 0:01:09.2]} 56. Qxc3 {[%clk 0:00:12.9]} 56... Qf6 {[%clk 0:01:09.5]}
57. Qb3 {[%clk 0:00:12.2]} 57... Qf3+ {[%clk 0:01:07]} 58. Kg1 {[%clk
0:00:12.9]} 58... Kg7 {[%clk 0:01:04.3]} 59. Bg2 {[%clk 0:00:12]} 59... Qf6
{[%clk 0:01:03.6]} 60. Bxd5 {[%clk 0:00:11.7]} 60... Nd2 {[%clk 0:01:03.2]} 61.
Qb8 {[%clk 0:00:08.7]} 61... Ndf3+ {[%clk 0:00:57.6]} 62. Bxf3 {[%clk
0:00:08.3]} 62... Nxf3+ {[%clk 0:00:57]} 63. Kg2 {[%clk 0:00:09.2]} 63... Ne1+
{[%clk 0:00:57.1]} 64. Kf1 {[%clk 0:00:09.4]} 64... Nd3 {[%clk 0:00:57.4]} 65.
Ne4 {[%clk 0:00:09.4]} 65... Qf5 {[%clk 0:00:49.2]} 66. Qb7 {[%clk 0:00:07.4]}
66... a4 {[%clk 0:00:43.8]} 67. Ke2 {[%clk 0:00:07.9]} 67... Ne5 {[%clk
0:00:42.1]} 68. Qd5 {[%clk 0:00:07.2]} 68... a3 {[%clk 0:00:37.4]} 69. Qd4
{[%clk 0:00:07.3]} 69... Kh7 {[%clk 0:00:33.9]} 70. f4 {[%clk 0:00:06.1]} 70...
Qg4+ {[%clk 0:00:29]} 71. Kf1 {[%clk 0:00:03.7]} 71... Qh3+ {[%clk 0:00:26.9]}
72. Ke2 {[%clk 0:00:03.3]} 72... Qf3+ {[%clk 0:00:25.3]} 73. Kd2 {[%clk
0:00:02]} 73... Qg2+ {[%clk 0:00:24.3]} 74. Kc3 {[%clk 0:00:02]} 74... Ng4
{[%clk 0:00:18.9]} 75. Ng5+ {[%clk 0:00:02.9]} 75... Kg8 {[%clk 0:00:18.7]} 76.
Qd8+ {[%clk 0:00:03.3]} 76... Kg7 {[%clk 0:00:18.8]} 77. Qd4+ {[%clk 0:00:04.1]}
77... Nf6 {[%clk 0:00:18.6]} 78. Qd8 {[%clk 0:00:02.9]} 78... Qb2+ {[%clk
0:00:17.5]} 79. Kd3 {[%clk 0:00:02.8]} 79... Qxa2 {[%clk 0:00:13.7]} 80. Qd4
{[%clk 0:00:03.7]} 80... Qb3+ {[%clk 0:00:11.9]} 81. Ke2 {[%clk 0:00:03.8]}
81... Qb2+ {[%clk 0:00:12.1]} 82. Kf3 {[%clk 0:00:03.7]} 82... Qxd4 {[%clk
0:00:12]} 83. exd4 {[%clk 0:00:03.7]} 83... a2 {[%clk 0:00:12.9]} 0-1

[Event "Late-Titled-Tuesday-Blitz-February-06-2024"]
[Site "Chess.com"]
[Date "2024.02.06"]
[Round "7"]
[White "GiorgianBarbosa"]
[Black "aghasiyevkamal"]
[Result "1-0"]
[WhiteElo "2489"]
[BlackElo "2603"]
[TimeControl "180+1"]
[EndTime "15:21:27 PST"]
[Termination "GiorgianBarbosa won by resignation"]

1. c4 {[%clk 0:02:59]} 1... e5 {[%clk 0:02:58]} 2. g3 {[%clk 0:02:59.9]} 2...
Nc6 {[%clk 0:02:58.1]} 3. Bg2 {[%clk 0:03:00.8]} 3... Nf6 {[%clk 0:02:58.8]} 4.
Nc3 {[%clk 0:03:01.4]} 4... Bb4 {[%clk 0:02:58]} 5. Nd5 {[%clk 0:03:01.8]} 5...
O-O {[%clk 0:02:58.2]} 6. e3 {[%clk 0:03:01.6]} 6... d6 {[%clk 0:02:57.1]} 7.
Ne2 {[%clk 0:03:01.5]} 7... Nxd5 {[%clk 0:02:56.2]} 8. cxd5 {[%clk 0:03:01.2]}
8... Ne7 {[%clk 0:02:56.7]} 9. a3 {[%clk 0:03:01]} 9... Bc5 {[%clk 0:02:56.3]}
10. d4 {[%clk 0:03:01.3]} 10... exd4 {[%clk 0:02:56.7]} 11. Nxd4 {[%clk
0:03:02.2]} 11... Nf5 {[%clk 0:02:56.3]} 12. Nxf5 {[%clk 0:02:58.4]} 12... Bxf5
{[%clk 0:02:56.5]} 13. b4 {[%clk 0:02:59.3]} 13... Bb6 {[%clk 0:02:56.4]} 14.
Bb2 {[%clk 0:02:59.2]} 14... Qe7 {[%clk 0:02:52.8]} 15. O-O {[%clk 0:02:59]}
15... Be4 {[%clk 0:02:52.3]} 16. Rc1 {[%clk 0:02:49.5]} 16... Bxg2 {[%clk
0:02:50.2]} 17. Kxg2 {[%clk 0:02:50.4]} 17... a5 {[%clk 0:02:50.4]} 18. b5
{[%clk 0:02:50]} 18... a4 {[%clk 0:02:45.2]} 19. Qg4 {[%clk 0:02:41.5]} 19... f5
{[%clk 0:02:41.4]} 20. Qc4 {[%clk 0:02:37]} 20... Bc5 {[%clk 0:02:40.7]} 21. Bd4
{[%clk 0:02:34.4]} 21... b6 {[%clk 0:02:40.4]} 22. Bxc5 {[%clk 0:02:33.9]} 22...
bxc5 {[%clk 0:02:38.9]} 23. Rb1 {[%clk 0:02:29.9]} 23... Qe4+ {[%clk 0:02:27.7]}
24. Qxe4 {[%clk 0:02:20.8]} 24... fxe4 {[%clk 0:02:27.6]} 25. b6 {[%clk
0:02:21.7]} 25... cxb6 {[%clk 0:02:06.6]} 26. Rxb6 {[%clk 0:02:22.6]} 26... Rad8
{[%clk 0:02:00.1]} 27. Ra6 {[%clk 0:02:16.4]} 27... Rf5 {[%clk 0:02:00]} 28.
Rxa4 {[%clk 0:02:12.3]} 28... Rxd5 {[%clk 0:01:57.7]} 29. Rxe4 {[%clk
0:02:12.2]} 29... Ra8 {[%clk 0:01:51.9]} 30. Rb1 {[%clk 0:02:10.9]} 30... Ra7
{[%clk 0:01:28.2]} 31. a4 {[%clk 0:02:06.1]} 31... Kf7 {[%clk 0:01:23.6]} 32.
Rb6 {[%clk 0:02:03.6]} 32... Re5 {[%clk 0:01:20]} 33. Rxe5 {[%clk 0:01:56.6]}
33... dxe5 {[%clk 0:01:20]} 34. Rc6 {[%clk 0:01:57.2]} 34... Rxa4 {[%clk
0:01:19.4]} 35. Rxc5 {[%clk 0:01:56.9]} 35... e4 {[%clk 0:01:13.2]} 36. Rc7+
{[%clk 0:01:55.4]} 36... Kf6 {[%clk 0:01:13.2]} 37. g4 {[%clk 0:01:55.5]} 37...
h6 {[%clk 0:01:11.9]} 38. h4 {[%clk 0:01:53.6]} 38... Rb4 {[%clk 0:01:01.4]} 39.
Kg3 {[%clk 0:01:49.4]} 39... Rb2 {[%clk 0:00:42.2]} 40. Rc6+ {[%clk 0:01:39.9]}
40... Ke5 {[%clk 0:00:40.4]} 41. Rc7 {[%clk 0:01:28.8]} 41... Kf6 {[%clk
0:00:31.9]} 42. Ra7 {[%clk 0:01:15.1]} 42... Rc2 {[%clk 0:00:30.3]} 43. Rd7
{[%clk 0:01:14.7]} 43... Rb2 {[%clk 0:00:28.2]} 44. Rd6+ {[%clk 0:00:55.6]}
44... Ke5 {[%clk 0:00:27.2]} 45. Rg6 {[%clk 0:00:56]} 45... Rb7 {[%clk 0:00:27]}
46. Ra6 {[%clk 0:00:55.5]} 46... Rb2 {[%clk 0:00:24.6]} 47. Rc6 {[%clk
0:00:52.7]} 47... Ra2 {[%clk 0:00:23.1]} 48. g5 {[%clk 0:00:51.8]} 48... hxg5
{[%clk 0:00:19.8]} 49. hxg5 {[%clk 0:00:52.7]} 49... Kf5 {[%clk 0:00:20.2]} 50.
g6 {[%clk 0:00:45.8]} 50... Ra1 {[%clk 0:00:15.4]} 51. Rc5+ {[%clk 0:00:39.8]}
51... Kxg6 {[%clk 0:00:13.9]} 52. Kf4 {[%clk 0:00:40]} 52... Ra4 {[%clk
0:00:11.4]} 53. Re5 {[%clk 0:00:37.4]} 53... Ra2 {[%clk 0:00:11.4]} 54. Rg5+
{[%clk 0:00:33.7]} 54... Kh6 {[%clk 0:00:08.8]} 55. Rg2 {[%clk 0:00:33]} 55...
Ra4 {[%clk 0:00:07]} 56. Kf5 {[%clk 0:00:31.2]} 56... Kh7 {[%clk 0:00:07]} 57.
Rh2+ {[%clk 0:00:21.7]} 57... Kg8 {[%clk 0:00:06.8]} 58. Rh4 {[%clk 0:00:22.1]}
58... Ra2 {[%clk 0:00:04.9]} 59. Rf4 {[%clk 0:00:22.3]} 59... Kh7 {[%clk
0:00:04.7]} 60. Kxe4 {[%clk 0:00:22.2]} 60... g5 {[%clk 0:00:05]} 61. Rf3 {[%clk
0:00:15.8]} 61... Kg6 {[%clk 0:00:05.2]} 62. Rf8 {[%clk 0:00:14.2]} 62... Ra4+
{[%clk 0:00:05]} 63. Kf3 {[%clk 0:00:14]} 63... Ra2 {[%clk 0:00:04.6]} 64. Kg3
{[%clk 0:00:13.9]} 64... Rb2 {[%clk 0:00:03.9]} 65. Rc8 {[%clk 0:00:13.9]} 65...
Ra2 {[%clk 0:00:03.9]} 66. f3 {[%clk 0:00:12.4]} 66... Ra3 {[%clk 0:00:04.1]}
67. e4 {[%clk 0:00:12]} 67... Ra1 {[%clk 0:00:04.8]} 68. Rc5 {[%clk 0:00:11.1]}
68... Kh5 {[%clk 0:00:04.9]} 69. Rf5 {[%clk 0:00:09.7]} 69... Rg1+ {[%clk
0:00:05.2]} 70. Kf2 {[%clk 0:00:10]} 70... Ra1 {[%clk 0:00:05.3]} 71. f4 {[%clk
0:00:09.8]} 71... Kg4 {[%clk 0:00:05.8]} 72. fxg5 {[%clk 0:00:09.6]} 72... Ra2+
{[%clk 0:00:06.1]} 73. Ke3 {[%clk 0:00:10.1]} 73... Ra1 {[%clk 0:00:06.3]} 74.
Kd4 {[%clk 0:00:10.4]} 74... Kh5 {[%clk 0:00:06.5]} 75. Ke5 {[%clk 0:00:10.6]}
75... Kg6 {[%clk 0:00:06.8]} 76. Rf2 {[%clk 0:00:08]} 76... Ra5+ {[%clk
0:00:06.7]} 77. Kf4 {[%clk 0:00:06.7]} 77... Rxg5 {[%clk 0:00:06.5]} 78. Rd2
{[%clk 0:00:04.5]} 78... Rg1 {[%clk 0:00:07]} 79. Rd7 {[%clk 0:00:03.6]} 79...
Kf6 {[%clk 0:00:07.1]} 80. Ra7 {[%clk 0:00:02.9]} 80... Ke6 {[%clk 0:00:07.2]}
81. Ra6+ {[%clk 0:00:02.6]} 81... Ke7 {[%clk 0:00:07.6]} 82. Ke5 {[%clk
0:00:03.5]} 82... Rg5+ {[%clk 0:00:07.1]} 83. Kd4 {[%clk 0:00:03.9]} 83... Rb5
{[%clk 0:00:08]} 84. Ra7+ {[%clk 0:00:03.6]} 84... Ke6 {[%clk 0:00:08.2]} 85.
Ra6+ {[%clk 0:00:04.5]} 85... Ke7 {[%clk 0:00:08]} 86. Ra7+ {[%clk 0:00:05.1]}
86... Ke6 {[%clk 0:00:08.5]} 87. Rh7 {[%clk 0:00:05.7]} 87... Rb4+ {[%clk
0:00:05.9]} 88. Ke3 {[%clk 0:00:05.7]} 88... Ke5 {[%clk 0:00:06.3]} 89. Rh5+
{[%clk 0:00:05.6]} 89... Ke6 {[%clk 0:00:06.6]} 90. Kf4 {[%clk 0:00:06.5]} 90...
Ra4 {[%clk 0:00:07]} 91. Re5+ {[%clk 0:00:07]} 91... Kf6 {[%clk 0:00:07.1]} 92.
Rc5 {[%clk 0:00:06.5]} 92... Ke6 {[%clk 0:00:07.3]} 93. Rc6+ {[%clk 0:00:06.5]}
93... Ke7 {[%clk 0:00:07.6]} 94. Rh6 {[%clk 0:00:06.9]} 94... Kf7 {[%clk
0:00:07.4]} 95. Kf5 {[%clk 0:00:06.8]} 95... Ra5+ {[%clk 0:00:06.4]} 96. e5
{[%clk 0:00:06.8]} 96... Ra1 {[%clk 0:00:07.3]} 97. Rh7+ {[%clk 0:00:06.9]}
97... Kg8 {[%clk 0:00:06.2]} 98. Rc7 {[%clk 0:00:06.2]} 98... Rf1+ {[%clk
0:00:05.6]} 99. Ke6 {[%clk 0:00:06.4]} 99... Re1 {[%clk 0:00:06.1]} 100. Rc8+
{[%clk 0:00:06.3]} 100... Kg7 {[%clk 0:00:06.4]} 101. Re8 {[%clk 0:00:05.9]}
101... Ra1 {[%clk 0:00:05.6]} 102. Rb8 {[%clk 0:00:05.3]} 102... Re1 {[%clk
0:00:05.7]} 103. Rb5 {[%clk 0:00:03.9]} 103... Kf8 {[%clk 0:00:05.7]} 104. Rb6
{[%clk 0:00:03]} 104... Re2 {[%clk 0:00:05.2]} 105. Rb7 {[%clk 0:00:03.3]}
105... Re1 {[%clk 0:00:04.9]} 106. Rf7+ {[%clk 0:00:03.6]} 106... Kg8 {[%clk
0:00:04.5]} 107. Rf3 {[%clk 0:00:03.7]} 107... Ra1 {[%clk 0:00:03.8]} 108. Kf6
{[%clk 0:00:03.2]} 108... Ra8 {[%clk 0:00:02.6]} 109. Rg3+ {[%clk 0:00:02.7]}
109... Kf8 {[%clk 0:00:02.3]} 110. Rh3 {[%clk 0:00:03.2]} 110... Kg8 {[%clk
0:00:02.2]} 111. Rg3+ {[%clk 0:00:03.5]} 111... Kf8 {[%clk 0:00:02.4]} 112. e6
{[%clk 0:00:04]} 112... Rd8 {[%clk 0:00:02]} 113. Rh3 {[%clk 0:00:04]} 113...
Kg8 {[%clk 0:00:02.3]} 114. Rg3+ {[%clk 0:00:04.2]} 114... Kh7 {[%clk
0:00:02.4]} 115. e7 {[%clk 0:00:04.1]} 115... Rd1 {[%clk 0:00:03.3]} 116. Kf7
{[%clk 0:00:04.1]} 116... Rf1+ {[%clk 0:00:04.2]} 117. Ke8 {[%clk 0:00:04.3]}
117... Re1 {[%clk 0:00:04.7]} 118. Rf3 {[%clk 0:00:04.3]} 118... Kg7 {[%clk
0:00:05.2]} 119. Rf5 {[%clk 0:00:04.3]} 119... Ra1 {[%clk 0:00:05.1]} 120. Rd5
{[%clk 0:00:03.9]} 120... Ra8+ {[%clk 0:00:05.5]} 121. Kd7 {[%clk 0:00:04.4]}
121... Ra7+ {[%clk 0:00:05.5]} 122. Ke6 {[%clk 0:00:04.6]} 122... Ra6+ {[%clk
0:00:05.2]} 123. Rd6 {[%clk 0:00:05]} 123... Ra1 {[%clk 0:00:05.3]} 124. Kd7
{[%clk 0:00:04.9]} 124... Re1 {[%clk 0:00:06.2]} 125. e8=Q {[%clk 0:00:04.9]}
125... Rxe8 {[%clk 0:00:05.9]} 126. Kxe8 {[%clk 0:00:05.8]} 1-0

[Event "Late-Titled-Tuesday-Blitz-February-06-2024"]
[Site "Chess.com"]
[Date "2024.02.06"]
[Round "8"]
[White "OYAcosta"]
[Black "ferdipy"]
[Result "0-1"]
[WhiteElo "2191"]
[BlackElo "2412"]
[TimeControl "180+1"]
[EndTime "15:24:11 PST"]
[Termination "ferdipy won by resignation"]

1. d4 {[%clk 0:02:59]} 1... e5 {[%clk 0:02:30.1]} 2. dxe5 {[%clk 0:02:57.5]}
2... d6 {[%clk 0:02:30.4]} 3. Nf3 {[%clk 0:02:58.4]} 3... Nc6 {[%clk 0:02:30.1]}
4. exd6 {[%clk 0:02:58.4]} 4... Bxd6 {[%clk 0:02:30]} 5. Bg5 {[%clk 0:02:57.9]}
5... f6 {[%clk 0:02:29.9]} 6. Bh4 {[%clk 0:02:55.4]} 6... Bg4 {[%clk 0:02:30.8]}
7. Nbd2 {[%clk 0:02:54.8]} 7... Qe7 {[%clk 0:02:30.1]} 8. c3 {[%clk 0:02:51.4]}
8... O-O-O {[%clk 0:02:30.4]} 9. Qb3 {[%clk 0:02:51]} 9... h5 {[%clk 0:02:27.3]}
10. e3 {[%clk 0:02:44]} 10... Bc5 {[%clk 0:02:25]} 11. Be2 {[%clk 0:02:34.2]}
11... g5 {[%clk 0:02:24]} 12. Bg3 {[%clk 0:02:29.5]} 12... h4 {[%clk 0:02:24]}
13. Nxh4 {[%clk 0:02:13.8]} 13... Bxe2 {[%clk 0:02:21.6]} 14. Nf5 {[%clk
0:02:09.4]} 14... Qd7 {[%clk 0:02:21.5]} 0-1